bitfinex/quotes_BTCUSD_20240611
["timestamp","ask_amount","ask_price","bid_price","bid_amount"]
[1718101838304,0.018,67232.0,67231.0,1.13198694]
[1718101838530,0.006,67232.0,67231.0,1.13198694]
[1718101839000,0.004,67232.0,67231.0,1.14198694]
[1718101839215,0.004,67232.0,67231.0,1.13198694]
[1718101839647,0.004,67232.0,67231.0,1.28630687]
[1718101839864,0.02132731,67249.0,67248.0,1.11627588]
[1718101839865,0.52132731,67249.0,67248.0,1.11627588]
[1718101840079,0.6542939,67249.0,67248.0,1.11627588]
[1718101840526,0.1542939,67249.0,67248.0,1.26059581]
[1718101840739,0.60812107,67251.0,67250.0,0.31487088]
[1718101840952,0.76239259,67251.0,67250.0,0.31487088]
[1718101842038,0.76239259,67251.0,67250.0,0.099205]
[1718101842249,0.77239259,67251.0,67250.0,0.100205]
[1718101842459,0.77239259,67251.0,67250.0,0.001]
[1718101842460,1.13788859,67251.0,67250.0,0.001]
[1718101842692,1.16088859,67251.0,67250.0,0.001]
[1718101843113,1.16388859,67251.0,67250.0,0.001]
[1718101843548,1.16388859,67251.0,67250.0,0.201]
[1718101843990,1.16388859,67251.0,67250.0,0.001]
[1718101844683,1.25358359,67251.0,67250.0,0.001]
[1718101844903,1.2932117,67251.0,67250.0,0.001]
[1718101845108,1.43753163,67251.0,67250.0,0.001]
[1718101845324,1.43453163,67251.0,67250.0,0.001]
[1718101845527,0.648712,67244.0,67243.0,0.09737006]
[1718101845750,0.6905773,67244.0,67243.0,0.09737006]
[1718101845980,0.84484882,67244.0,67243.0,0.09737006]
[1718101846195,0.82598352,67244.0,67243.0,0.09737006]
[1718101846589,0.148716,67242.0,67241.0,0.37537506]
[1718101846795,0.32598752,67242.0,67241.0,0.37537506]
[1718101847847,0.32598752,67242.0,67241.0,0.39104094]
[1718101848058,0.32598752,67242.0,67241.0,0.37537506]
[1718101848841,0.33098752,67242.0,67241.0,0.37537506]
[1718101849946,0.33098752,67242.0,67241.0,0.39104094]
[1718101850463,0.33098752,67242.0,67241.0,0.37537506]
[1718101851130,0.176716,67242.0,67241.0,0.37537506]
[1718101851377,0.33101798,67242.0,67241.0,0.37537506]
[1718101852744,0.33101798,67242.0,67241.0,0.39104094]
[1718101855021,0.18230198,67242.0,67241.0,0.39104094]
[1718101855225,0.15930198,67242.0,67241.0,1.09124094]
[1718101857892,0.30801798,67242.0,67241.0,1.09124094]
[1718101858481,0.33101798,67242.0,67241.0,0.39104094]
[1718101858692,0.33101798,67242.0,67241.0,0.37537506]
[1718101859096,0.33101798,67242.0,67241.0,0.39104094]
[1718101859321,0.33101798,67242.0,67241.0,0.17537506]
[1718101861886,0.37908919,67242.0,67241.0,0.17537506]
[1718101862096,0.33601798,67242.0,67241.0,0.17537506]
[1718101862302,0.37958114,67242.0,67241.0,0.17537506]
[1718101862516,0.37458114,67242.0,67241.0,0.17537506]
[1718101862717,0.37725287,67242.0,67241.0,0.17537506]
[1718101864419,0.37725287,67242.0,67241.0,0.078005]
[1718101864649,0.37725287,67242.0,67241.0,0.17537506]
[1718101864875,0.37725287,67242.0,67241.0,0.078005]
[1718101865090,0.37725287,67242.0,67241.0,0.17537506]
[1718101865287,0.50118949,67242.0,67241.0,0.078005]
[1718101865750,0.97018949,67242.0,67241.0,0.078005]
[1718101866005,1.00780116,67242.0,67241.0,0.078005]
[1718101866210,0.5,67236.0,67235.0,0.04990278]
[1718101866408,2.11845039,67236.0,67235.0,0.04990278]
[1718101866610,0.148738,67232.0,67231.0,0.000946]
[1718101866809,0.35550039,67232.0,67231.0,0.000946]
[1718101867634,0.35550039,67232.0,67231.0,0.71451188]
[1718101867635,0.33250039,67232.0,67231.0,0.71451188]
[1718101868003,0.32970039,67232.0,67231.0,0.71451188]
[1718101868231,0.32970039,67232.0,67231.0,0.698846]
[1718101868516,0.28613723,67232.0,67231.0,0.698846]
[1718101868732,0.37889214,67232.0,67231.0,0.71451188]
[1718101868971,0.39437087,67232.0,67231.0,0.698846]
[1718101869444,0.38037087,67232.0,67231.0,0.698846]
[1718101869694,0.38737087,67232.0,67231.0,0.698846]
[1718101869912,0.40037087,67232.0,67231.0,0.698846]
[1718101870357,0.40037087,67232.0,67231.0,0.498846]
[1718101870358,0.30761596,67232.0,67231.0,0.498846]
[1718101870598,0.30705573,67232.0,67231.0,0.498846]
[1718101870843,0.30705573,67232.0,67231.0,0.698846]
[1718101871312,0.30705573,67232.0,67231.0,0.498846]
[1718101871908,0.39148941,67232.0,67231.0,0.698846]
[1718101872335,0.30705573,67232.0,67231.0,0.498846]
[1718101872542,0.39282245,67232.0,67231.0,0.698846]
[1718101873416,0.39282245,67232.0,67231.0,0.498846]
[1718101873586,0.39282245,67232.0,67231.0,0.698846]
[1718101873817,0.39282245,67232.0,67231.0,0.71451188]
[1718101875067,0.47952245,67232.0,67231.0,0.71451188]
[1718101875593,0.47952245,67232.0,67231.0,0.498846]
[1718101875789,0.47952245,67232.0,67231.0,0.000946]
[1718101876001,0.92951735,67232.0,67231.0,0.000946]
[1718101876750,0.99624805,67232.0,67231.0,0.000946]
[1718101876951,1.05271735,67232.0,67231.0,0.000946]
[1718101877275,1.1041939,67232.0,67231.0,0.000946]
[1718101877449,0.974676,67232.0,67231.0,0.000946]
[1718101877653,0.99333769,67232.0,67231.0,0.000946]
[1718101877877,1.00633769,67232.0,67231.0,0.000946]
[1718101878436,0.99933769,67232.0,67231.0,0.000946]
[1718101878632,1.01692579,67232.0,67231.0,0.000946]
[1718101878846,1.16224572,67232.0,67231.0,0.000946]
[1718101879047,1.01792579,67232.0,67231.0,0.000946]
[1718101879472,1.03192579,67232.0,67231.0,0.000946]
[1718101880027,1.01792579,67232.0,67231.0,0.000946]
[1718101880324,1.03192579,67232.0,67231.0,0.000946]
[1718101881236,1.01792579,67232.0,67231.0,0.000946]
[1718101881455,0.96341235,67232.0,67231.0,0.000946]
[1718101881679,0.97741235,67232.0,67231.0,0.000946]
[1718101882126,1.0218889,67232.0,67231.0,0.000946]
[1718101882332,0.97741235,67232.0,67231.0,0.000946]
[1718101883251,0.97713527,67232.0,67231.0,0.000946]
[1718101883485,1.01441879,67232.0,67231.0,0.000946]
[1718101883735,0.97799527,67232.0,67231.0,0.000946]
[1718101884858,1.1083152,67232.0,67231.0,0.000946]
[1718101885075,1.1083152,67232.0,67230.0,0.000946]
[1718101885076,1.448497,67231.0,67230.0,0.000946]
[1718101885285,0.500795,67228.0,67227.0,0.000946]
[1718101885497,1.77209,67228.0,67227.0,0.000946]
[1718101885708,1.79509,67228.0,67227.0,0.000946]
[1718101886347,1.72842241,67228.0,67227.0,0.000946]
[1718101887170,1.74242241,67228.0,67227.0,0.000946]
[1718101887388,1.80909,67228.0,67227.0,0.000946]
[1718101887618,1.74242241,67228.0,67227.0,0.000946]
[1718101888236,1.80909,67228.0,67227.0,0.000946]
[1718101888433,1.97332241,67228.0,67227.0,0.000946]
[1718101890436,2.03999,67228.0,67227.0,0.000946]
[1718101890652,2.01874338,67228.0,67227.0,0.000946]
[1718101891298,2.64049572,67228.0,67227.0,0.000946]
[1718101891527,2.72938584,67228.0,67227.0,0.000946]
[1718101891968,2.72938584,67228.0,67224.0,0.000946]
[1718101891969,0.447057,67225.0,67224.0,0.000946]
[1718101892195,0.646281,67222.0,67218.0,0.04997543]
[1718101892417,2.68637643,67222.0,67218.0,0.04997543]
[1718101892633,2.49247643,67222.0,67218.0,0.04997543]
[1718101892850,2.68716212,67222.0,67216.0,0.078005]
[1718101893059,2.78704586,67222.0,67216.0,0.078005]
[1718101893232,2.73844586,67222.0,67216.0,0.078005]
[1718101893445,2.75244586,67222.0,67216.0,0.078005]
[1718101893853,2.73844586,67222.0,67216.0,0.078005]
[1718101894330,2.46332217,67222.0,67216.0,0.078005]
[1718101894548,2.59370983,67222.0,67216.0,0.078005]
[1718101894730,2.56607616,67222.0,67216.0,0.078005]
[1718101895143,1.86167616,67222.0,67216.0,0.278005]
[1718101895398,1.9621885,67222.0,67216.0,0.078005]
[1718101895597,2.08568041,67222.0,67216.0,0.078005]
[1718101896127,2.09968041,67222.0,67216.0,0.078005]
[1718101896970,1.96958041,67222.0,67216.0,0.078005]
[1718101898950,2.11469534,67222.0,67211.0,0.09737006]
[1718101899154,2.11469534,67222.0,67208.0,0.22519453]
[1718101899155,0.648789,67209.0,67208.0,0.22519453]
[1718101899355,0.88208091,67209.0,67208.0,0.42519453]
[1718101899578,0.88208091,67209.0,67208.0,0.17537506]
[1718101899961,0.88208091,67209.0,67208.0,0.078005]
[1718101900148,0.88208091,67209.0,67208.0,0.17537506]
[1718101900344,0.91864485,67209.0,67208.0,0.17537506]
[1718101900570,0.92064485,67209.0,67208.0,0.17537506]
[1718101900806,0.91864485,67209.0,67208.0,0.17537506]
[1718101901587,0.92664485,67209.0,67208.0,0.17537506]
[1718101901995,0.91864485,67209.0,67208.0,0.17537506]
[1718101902380,0.94264485,67209.0,67208.0,0.078005]
[1718101902577,0.93264485,67209.0,67208.0,0.17537506]
[1718101902990,0.92864485,67209.0,67208.0,0.17537506]
[1718101903189,0.94264485,67209.0,67208.0,0.17537506]
[1718101903390,0.94264485,67209.0,67208.0,0.078005]
[1718101903667,1.65286234,67209.0,67208.0,0.078005]
[1718101904066,0.85584485,67209.0,67208.0,0.54187088]
[1718101904310,0.14749191,67209.0,67208.0,1.13174094]
[1718101904606,0.13366903,67209.0,67208.0,1.13174094]
[1718101904756,0.01,67209.0,67208.0,1.13174094]
[1718101904959,0.024,67209.0,67208.0,1.13174094]
[1718101905390,0.014,67209.0,67208.0,1.13174094]
[1718101905580,0.148785,67211.0,67210.0,1.03923594]
[1718101905780,0.27060114,67211.0,67210.0,1.03923594]
[1718101906203,0.12181614,67211.0,67210.0,1.28276087]
[1718101906409,0.12181614,67211.0,67210.0,1.29276087]
[1718101906584,0.148777,67215.0,67214.0,0.95976588]
[1718101907206,0.27003792,67215.0,67214.0,0.95976588]
[1718101908970,0.27803792,67215.0,67214.0,0.96976588]
[1718101909186,0.12926092,67215.0,67214.0,1.31066087]
[1718101909394,0.01,67215.0,67214.0,1.31066087]
[1718101911093,0.01,67215.0,67214.0,1.30066087]
[1718101911206,0.01,67215.0,67214.0,1.31066087]
[1718101911419,0.01,67215.0,67214.0,1.30066087]
[1718101912288,0.01,67215.0,67214.0,0.31303594]
[1718101912465,0.28087918,67215.0,67214.0,1.03163594]
[1718101912661,0.78087918,67215.0,67214.0,1.03163594]
[1718101912840,0.78088207,67215.0,67214.0,1.03163594]
[1718101916699,0.77988207,67215.0,67214.0,1.03163594]
[1718101917496,0.657776,67215.0,67214.0,1.03163594]
[1718101917705,0.77487421,67215.0,67214.0,1.03163594]
[1718101918539,0.77487421,67215.0,67214.0,1.04163594]
[1718101919073,0.509,67215.0,67214.0,1.04163594]
[1718101919280,0.509,67215.0,67214.0,1.27516087]
[1718101919526,0.509,67215.0,67214.0,1.28516087]
[1718101922239,0.009,67215.0,67214.0,1.28516087]
[1718101923054,0.007,67215.0,67214.0,1.27516087]
[1718101923474,1.42512107,67222.0,67220.0,0.49024594]
[1718101923475,0.148763,67221.0,67220.0,0.49024594]
[1718101923674,0.2658639,67221.0,67220.0,0.72584594]
[1718101923913,0.148763,67221.0,67220.0,0.72584594]
[1718101924911,0.156763,67221.0,67220.0,0.72584594]
[1718101925315,0.156763,67221.0,67220.0,1.19544594]
[1718101926088,0.158763,67221.0,67220.0,1.19544594]
[1718101928720,0.58388407,67222.0,67221.0,0.21566588]
[1718101929164,0.58388407,67222.0,67221.0,0.31303594]
[1718101930328,0.73564407,67222.0,67221.0,0.31303594]
[1718101930893,0.74464407,67222.0,67221.0,0.31403594]
[1718101931310,0.85360129,67222.0,67221.0,0.31403594]
[1718101934331,0.90505462,67222.0,67221.0,0.31403594]
[1718101934980,0.85360129,67222.0,67221.0,0.31403594]
[1718101935185,0.89547346,67222.0,67221.0,0.31403594]
[1718101936446,0.89547346,67222.0,67221.0,0.09837006]
[1718101936447,1.41037346,67222.0,67221.0,0.09837006]
[1718101936657,1.63337346,67222.0,67221.0,0.001]
[1718101936860,1.70015613,67222.0,67221.0,0.001]
[1718101937482,1.63337346,67222.0,67221.0,0.001]
[1718101937684,0.148763,67221.0,67220.0,0.078005]
[1718101937888,0.42104496,67221.0,67220.0,0.078005]
[1718101938024,0.35425408,67221.0,67220.0,0.078005]
[1718101938690,0.4210447,67221.0,67220.0,0.078005]
[1718101939630,0.35425408,67221.0,67220.0,0.078005]
[1718101940192,0.35425408,67221.0,67220.0,0.29367088]
[1718101940431,0.45495408,67221.0,67220.0,0.29367088]
[1718101940596,0.46695408,67221.0,67220.0,0.29367088]
[1718101941285,0.45838943,67221.0,67220.0,0.278005]
[1718101941674,0.45838943,67221.0,67220.0,0.078005]
[1718101941873,0.45838943,67221.0,67220.0,0.278005]
[1718101942086,0.45838943,67221.0,67220.0,0.078005]
[1718101943101,0.35720725,67221.0,67220.0,0.078005]
[1718101943361,0.4566949,67221.0,67220.0,0.078005]
[1718101943823,0.4566949,67221.0,67220.0,0.29367088]
[1718101944048,0.4306949,67221.0,67220.0,0.29367088]
[1718101944225,0.4306949,67221.0,67220.0,0.078005]
[1718101944432,0.4347436,67221.0,67220.0,0.078005]
[1718101944666,0.4227436,67221.0,67220.0,0.078005]
[1718101944891,0.4087436,67221.0,67220.0,0.078005]
[1718101945124,0.4087436,67221.0,67220.0,0.29367088]
[1718101945347,0.32513421,67221.0,67220.0,0.29367088]
[1718101945567,0.32513996,67221.0,67220.0,0.278005]
[1718101945797,0.32513996,67221.0,67220.0,0.29367088]
[1718101945999,0.32513996,67221.0,67220.0,0.078005]
[1718101946210,0.33913996,67221.0,67220.0,0.078005]
[1718101947075,0.35313996,67221.0,67220.0,0.078005]
[1718101948250,0.35313996,67221.0,67220.0,0.078951]
[1718101948460,0.40037616,67221.0,67220.0,0.078951]
[1718101948664,0.40037616,67221.0,67220.0,0.29461688]
[1718101948866,0.35584685,67221.0,67220.0,0.29461688]
[1718101949078,0.35584685,67221.0,67220.0,0.53901688]
[1718101949735,0.40037616,67221.0,67220.0,0.53901688]
[1718101949992,0.40037616,67221.0,67220.0,0.523351]
[1718101950469,0.40037616,67221.0,67220.0,0.53351688]
[1718101950470,0.30504726,67221.0,67220.0,0.53351688]
[1718101950687,0.26051795,67221.0,67220.0,1.00691688]
[1718101950926,0.20849508,67221.0,67220.0,0.791251]
[1718101951123,0.29519508,67221.0,67220.0,0.078951]
[1718101951357,0.34013739,67221.0,67220.0,0.078951]
[1718101951590,0.35413739,67221.0,67220.0,0.078951]
[1718101951798,0.34358584,67221.0,67220.0,0.078951]
[1718101952153,0.36658584,67221.0,67220.0,0.078951]
[1718101952351,0.48848623,67221.0,67220.0,0.078951]
[1718101952969,0.47448934,67221.0,67220.0,0.078951]
[1718101953305,0.4159085,67221.0,67220.0,0.078951]
[1718101953507,0.4269085,67221.0,67220.0,0.078951]
[1718101953664,0.4409085,67221.0,67220.0,0.078951]
[1718101954498,0.50777977,67221.0,67220.0,0.078951]
[1718101954640,0.4409085,67221.0,67220.0,0.078951]
[1718101954839,0.50777977,67221.0,67220.0,0.078951]
[1718101955670,0.4409085,67221.0,67220.0,0.078951]
[1718101956084,0.02,67210.0,67196.0,0.20112068]
[1718101956309,0.02,67208.0,67199.0,0.14431993]
[1718101956518,0.08370878,67207.0,67199.0,0.14431993]
[1718101956715,0.08370878,67206.0,67199.0,0.14431993]
[1718101956917,0.10370878,67208.0,67199.0,0.14431993]
[1718101957210,0.12726555,67207.0,67199.0,0.14431993]
[1718101957594,0.12726555,67206.0,67199.0,0.14631993]
[1718101957801,0.43395979,67208.0,67199.0,0.002]
[1718101958041,0.255509,67200.0,67199.0,0.002]
[1718101958408,0.02,67194.0,67193.0,0.009416]
[1718101958667,0.14709282,67194.0,67193.0,0.009416]
[1718101958911,0.12709282,67194.0,67193.0,0.009416]
[1718101959114,0.14709282,67194.0,67193.0,0.752316]
[1718101959323,0.29591482,67194.0,67193.0,0.752316]
[1718101959926,0.12709282,67194.0,67193.0,0.752316]
[1718101960543,0.12809282,67194.0,67193.0,0.752316]
[1718101961531,0.21479282,67194.0,67193.0,0.752316]
[1718101961780,0.21979282,67194.0,67193.0,0.752316]
[1718101962162,0.13309282,67194.0,67193.0,0.752316]
[1718101962370,0.21979282,67194.0,67193.0,0.752316]
[1718101962775,0.13309282,67194.0,67193.0,0.752316]
[1718101962969,0.21979282,67194.0,67193.0,0.752316]
[1718101964278,0.13309282,67194.0,67193.0,0.752316]
[1718101964473,0.21979282,67194.0,67193.0,0.752316]
[1718101966770,0.13309282,67194.0,67193.0,0.752316]
[1718101966950,0.21979282,67194.0,67193.0,0.752316]
[1718101968139,0.13309282,67194.0,67193.0,0.752316]
[1718101968355,0.21979282,67194.0,67193.0,0.752316]
[1718101970371,0.24709626,67194.0,67193.0,0.752316]
[1718101971002,0.16039626,67194.0,67193.0,0.752316]
[1718101971466,0.24709626,67194.0,67193.0,0.752316]
[1718101974180,0.26709626,67194.0,67193.0,0.009416]
[1718101974424,0.53628346,67194.0,67193.0,0.009416]
[1718101974638,1.24246551,67194.0,67193.0,0.009416]
[1718101974856,1.26099246,67194.0,67193.0,0.009416]
[1718101975079,1.30548021,67194.0,67193.0,0.009416]
[1718101975288,1.30048021,67194.0,67193.0,0.009416]
[1718101975529,1.31448021,67194.0,67193.0,0.009416]
[1718101975740,1.26999246,67194.0,67193.0,0.009416]
[1718101975943,1.7522069,67194.0,67193.0,0.009416]
[1718101976418,2.37717183,67194.0,67193.0,0.009416]
[1718101976619,0.5,67172.0,67171.0,0.2536]
[1718101976835,0.65442086,67172.0,67171.0,0.2536]
[1718101977254,0.67442086,67172.0,67171.0,0.2536]
[1718101977877,0.67842086,67172.0,67171.0,0.2536]
[1718101978282,0.5,67165.0,67164.0,0.009427]
[1718101978484,0.67442086,67165.0,67164.0,0.009427]
[1718101978693,0.67442086,67165.0,67164.0,0.759127]
[1718101978899,0.65442086,67165.0,67164.0,0.759127]
[1718101979310,0.80330786,67165.0,67164.0,0.271027]
[1718101979810,0.65542086,67165.0,67164.0,0.271027]
[1718101980197,0.65442086,67165.0,67164.0,0.271027]
[1718101981162,0.66242086,67165.0,67164.0,0.271027]
[1718101981559,0.67542086,67165.0,67164.0,0.271027]
[1718101983931,0.521,67165.0,67164.0,0.271027]
[1718101985156,0.521,67165.0,67164.0,0.41534693]
[1718101985355,0.521,67165.0,67164.0,0.91054693]
[1718101986331,0.513,67165.0,67164.0,0.91054693]
[1718101986753,0.514,67165.0,67164.0,0.91054693]
[1718101987547,0.501,67165.0,67164.0,0.91054693]
[1718101987749,0.504,67165.0,67164.0,0.91054693]
[1718101988427,0.501,67165.0,67164.0,0.91054693]
[1718101988789,0.501,67165.0,67164.0,0.766227]
[1718101989014,0.669887,67165.0,67164.0,0.009427]
[1718101989213,0.80434971,67165.0,67164.0,0.009427]
[1718101990178,0.80334971,67165.0,67164.0,0.009427]
[1718101990495,0.80434971,67165.0,67164.0,0.009427]
[1718101991190,0.81634971,67165.0,67164.0,0.009427]
[1718101991811,0.83034971,67165.0,67164.0,0.009427]
[1718101992874,0.81734971,67165.0,67164.0,0.009427]
[1718101993073,0.81534971,67165.0,67164.0,0.009427]
[1718101993480,0.82934971,67165.0,67164.0,0.009427]
[1718101996640,0.80334971,67165.0,67164.0,0.009427]
[1718101996915,0.81734971,67165.0,67164.0,0.009427]
[1718101997334,0.82834971,67165.0,67164.0,0.009427]
[1718101997943,0.84834971,67165.0,67164.0,0.009427]
[1718101998944,0.93524971,67165.0,67164.0,0.009427]
[1718101999557,0.92124971,67165.0,67164.0,0.009427]
[1718101999720,0.91024971,67165.0,67164.0,0.009427]
[1718102000035,0.92424971,67165.0,67164.0,0.009427]
[1718102000248,0.83734971,67165.0,67164.0,0.009427]
[1718102000440,0.92424971,67165.0,67164.0,0.009427]
[1718102000636,0.90424971,67165.0,67164.0,0.009427]
[1718102000841,0.92424971,67165.0,67164.0,0.009427]
[1718102002297,0.90424971,67165.0,67164.0,0.009427]
[1718102002749,0.66846271,67165.0,67164.0,0.88334693]
[1718102002879,0.16846271,67165.0,67164.0,0.88334693]
[1718102006020,0.81734971,67165.0,67164.0,0.009427]
[1718102006222,0.92424971,67165.0,67164.0,0.009427]
[1718102006430,0.93934242,67165.0,67164.0,0.009427]
[1718102007695,0.95934242,67165.0,67164.0,0.009427]
[1718102008447,0.94863723,67165.0,67164.0,0.009427]
[1718102008644,1.03553723,67165.0,67164.0,0.009427]
[1718102008858,0.94863723,67165.0,67164.0,0.009427]
[1718102009785,0.92863723,67165.0,67164.0,0.009427]
[1718102010822,0.88605035,67165.0,67164.0,0.009427]
[1718102011024,0.92871365,67165.0,67164.0,0.009427]
[1718102012276,0.92871365,67165.0,67164.0,0.705527]
[1718102012427,0.80991308,67165.0,67164.0,0.705527]
[1718102015137,0.66102608,67165.0,67164.0,0.39864693]
[1718102015803,0.66102608,67165.0,67164.0,0.87934693]
[1718102016057,0.65202608,67165.0,67164.0,0.87934693]
[1718102016259,0.64702608,67165.0,67164.0,0.87934693]
[1718102016636,0.65502608,67165.0,67164.0,0.87934693]
[1718102016860,0.65802608,67165.0,67164.0,0.87934693]
[1718102017072,0.511,67165.0,67164.0,0.87934693]
[1718102017260,0.15190005,67165.0,67164.0,0.87934693]
[1718102017459,0.011,67165.0,67164.0,0.87934693]
[1718102018437,0.011,67165.0,67164.0,1.07934693]
[1718102019179,0.008,67165.0,67164.0,1.07934693]
[1718102019376,0.5,67173.0,67167.0,0.2426]
[1718102019580,0.16534011,67172.0,67168.0,0.14431993]
[1718102019803,0.14234011,67171.0,67169.0,0.6939]
[1718102019966,0.14234011,67171.0,67170.0,0.14431993]
[1718102020145,0.16534011,67171.0,67170.0,0.14431993]
[1718102020581,0.023,67171.0,67170.0,0.14431993]
[1718102020776,0.023,67172.0,67170.0,0.14431993]
[1718102022982,0.005,67171.0,67170.0,0.14431993]
[1718102023186,0.023,67171.0,67170.0,0.14431993]
[1718102023393,0.032,67171.0,67170.0,0.14431993]
[1718102024018,0.032,67171.0,67165.0,0.2545]
[1718102024257,0.15783066,67170.0,67166.0,0.14431993]
[1718102024694,0.13483066,67169.0,67166.0,0.14431993]
[1718102024892,0.023,67168.0,67166.0,0.14431993]
[1718102025127,0.13483066,67167.0,67166.0,0.14431993]
[1718102025376,0.30671266,67167.0,67166.0,0.14431993]
[1718102026100,0.30383028,67167.0,67166.0,0.14431993]
[1718102026541,0.30383028,67167.0,67166.0,0.14531993]
[1718102026796,0.30383028,67167.0,67166.0,0.21747989]
[1718102027830,0.15894828,67167.0,67166.0,0.91517989]
[1718102028256,0.027,67167.0,67166.0,0.91517989]
[1718102029872,0.175882,67167.0,67166.0,0.91517989]
[1718102030080,0.175882,67167.0,67166.0,0.14531993]
[1718102030284,0.175882,67167.0,67166.0,0.001]
[1718102030490,0.30795384,67167.0,67166.0,0.001]
[1718102030701,0.35057664,67167.0,67166.0,0.001]
[1718102031755,0.37057664,67167.0,67166.0,0.001]
[1718102031966,0.59037664,67167.0,67166.0,0.001]
[1718102032180,0.61037664,67167.0,67166.0,0.001]
[1718102032711,0.69727664,67167.0,67166.0,0.001]
[1718102033135,0.67727664,67167.0,67166.0,0.001]
[1718102033341,0.43747664,67167.0,67166.0,0.001]
[1718102033561,1.45144164,67167.0,67166.0,0.001]
[1718102033769,1.53027539,67167.0,67166.0,0.001]
[1718102033980,1.53019839,67167.0,67166.0,0.001]
[1718102034220,1.52619839,67167.0,67166.0,0.001]
[1718102034664,1.53019839,67167.0,67166.0,0.001]
[1718102035080,1.52988914,67167.0,67166.0,0.001]
[1718102035288,0.648887,67165.0,67164.0,0.009427]
[1718102035516,0.86650464,67165.0,67164.0,0.009427]
[1718102035954,0.84650464,67165.0,67164.0,0.009427]
[1718102036196,0.93339299,67165.0,67164.0,0.009427]
[1718102036844,0.93639299,67165.0,67164.0,0.009427]
[1718102037265,0.94439299,67165.0,67164.0,0.009427]
[1718102037472,0.44439299,67165.0,67164.0,0.009427]
[1718102037683,99.17810904,67150.0,67146.0,0.009416]
[1718102037891,99.17810904,67150.0,67147.0,0.14431993]
[1718102039238,99.17910904,67150.0,67147.0,0.14431993]
[1718102039495,99.18010904,67150.0,67147.0,0.14431993]
[1718102039950,99.18110904,67150.0,67147.0,0.14731993]
[1718102040317,0.003,67150.0,67147.0,0.14731993]
[1718102040708,0.002,67150.0,67148.0,0.6803]
[1718102040964,0.002,67150.0,67149.0,0.14431993]
[1718102041169,0.003,67150.0,67149.0,0.14431993]
[1718102042065,0.001,67150.0,67149.0,0.14431993]
[1718102042731,0.1099,67155.0,67149.0,0.14431993]
[1718102042949,0.001,67150.0,67149.0,0.14431993]
[1718102043163,0.002,67150.0,67149.0,0.14731993]
[1718102043390,0.001,67150.0,67149.0,0.14731993]
[1718102043782,0.002,67150.0,67149.0,0.14831993]
[1718102045060,0.002,67150.0,67149.0,0.004]
[1718102045277,0.95062,67150.0,67149.0,0.004]
[1718102045484,0.25882,67150.0,67146.0,0.682916]
[1718102045643,0.14892,67150.0,67147.0,0.14431993]
[1718102045849,0.023,67149.0,67147.0,0.14431993]
[1718102046104,0.001,67150.0,67147.0,0.14431993]
[1718102046105,0.002,67150.0,67148.0,0.2371]
[1718102046334,0.001,67150.0,67149.0,0.61781993]
[1718102046506,0.0869,67159.0,67149.0,0.81781993]
[1718102046867,0.0869,67159.0,67150.0,0.2]
[1718102046868,0.148905,67157.0,67150.0,0.2]
[1718102047072,0.148905,67157.0,67152.0,0.2]
[1718102047210,0.148905,67157.0,67153.0,0.14431993]
[1718102047417,0.023,67156.0,67153.0,0.14431993]
[1718102047965,0.023,67156.0,67154.0,0.6817]
[1718102048226,0.023,67160.0,67155.0,0.14431993]
[1718102049064,0.5,67168.0,67157.0,0.4764]
[1718102049275,0.5,67168.0,67158.0,0.36841993]
[1718102049276,0.0869,67166.0,67158.0,0.36841993]
[1718102049980,0.003,67160.0,67158.0,0.36841993]
[1718102050485,0.236785,67166.0,67158.0,0.36841993]
[1718102050779,0.023,67165.0,67161.0,0.2]
[1718102051033,0.023,67165.0,67162.0,0.86161993]
[1718102052085,0.023,67165.0,67162.0,1.06161993]
[1718102052301,0.04983031,67169.0,67163.0,0.2207]
[1718102052548,0.04983031,67169.0,67164.0,0.14431993]
[1718102052776,0.707567,67174.0,67165.0,0.6791]
[1718102052976,0.707567,67174.0,67166.0,0.14431993]
[1718102053653,0.023,67173.0,67166.0,0.14431993]
[1718102054713,0.023,67173.0,67167.0,0.2]
[1718102054924,0.023,67173.0,67168.0,0.14431993]
[1718102055142,0.023,67173.0,67170.0,0.4365]
[1718102055344,0.023,67173.0,67171.0,0.14431993]
[1718102055729,0.004,67174.0,67172.0,0.2]
[1718102055946,0.004,67174.0,67173.0,0.14431993]
[1718102056164,0.027,67174.0,67173.0,0.34431993]
[1718102056403,0.027,67174.0,67173.0,0.14431993]
[1718102056404,0.023,67174.0,67173.0,0.14431993]
[1718102056672,0.023,67176.0,67173.0,0.14431993]
[1718102057117,0.148859,67178.0,67173.0,0.14431993]
[1718102057118,0.023,67177.0,67173.0,0.14431993]
[1718102057583,0.013,67174.0,67173.0,0.34531993]
[1718102057817,0.013,67174.0,67173.0,1.30391993]
[1718102058049,0.013,67174.0,67173.0,1.40391993]
[1718102058488,0.02,67174.0,67173.0,1.47873594]
[1718102058943,0.01775696,67191.0,67179.0,0.2]
[1718102059184,0.04920617,67192.0,67182.0,0.14431993]
[1718102059598,0.04920617,67192.0,67183.0,0.2347]
[1718102059812,0.04920617,67192.0,67184.0,0.14431993]
[1718102059946,0.14920617,67192.0,67184.0,0.14431993]
[1718102060147,0.001,67191.0,67184.0,0.14431993]
[1718102060496,0.024,67191.0,67184.0,0.14431993]
[1718102061398,0.024,67191.0,67184.0,0.21647989]
[1718102061624,0.023,67191.0,67184.0,0.21647989]
[1718102062880,0.024,67191.0,67184.0,0.22547989]
[1718102067448,0.024,67191.0,67186.0,0.2]
[1718102067728,0.024,67191.0,67189.0,0.2]
[1718102067940,0.241,67191.0,67190.0,0.82961993]
[1718102068814,0.24,67191.0,67190.0,0.82961993]
[1718102070892,0.244,67191.0,67190.0,0.82961993]
[1718102071721,0.245,67191.0,67190.0,0.83561993]
[1718102072151,0.245,67191.0,67190.0,0.37421993]
[1718102072414,0.245,67191.0,67190.0,0.15031993]
[1718102072661,0.245,67191.0,67190.0,0.006]
[1718102072662,0.862429,67191.0,67190.0,0.006]
[1718102072854,0.02,67178.0,67171.0,0.07215996]
[1718102073073,0.148871,67172.0,67171.0,0.07215996]
[1718102073267,0.365871,67172.0,67171.0,0.07215996]
[1718102073475,0.388871,67172.0,67171.0,0.07215996]